fUST/lending_fUST_20250210
["ID","MTS","AMOUNT","RATE_DAILY","PERIOD"]
[352563764,1739170241375,-755.08,0.00011095,2]
[352563765,1739170241384,-214.73044086,0.00011095,2]
[352563766,1739170241393,-5415.67,0.00011095,2]
[352563767,1739170241403,-500.0,0.00011095,2]
[352563768,1739170241413,-500.0,0.00011095,2]
[352563769,1739170241422,-500.0,0.00011095,2]
[352563770,1739170241431,-500.0,0.00011095,2]
[352563771,1739170241440,-644.14,0.00011095,2]
[352563772,1739170241449,-500.0,0.00011095,2]
[352563773,1739170241459,-500.0,0.00011095,2]
[352563774,1739170241469,-500.0,0.00011095,2]
[352563775,1739170241478,-500.0,0.00011095,2]
[352563776,1739170241487,-886.77,0.00011095,2]
[352563777,1739170241496,-11218.02,0.00011095,2]
[352563778,1739170241506,-7404.08,0.00011095,2]
[352563779,1739170241515,-500.0,0.00011095,2]
[352563780,1739170241524,-500.0,0.00011095,2]
[352563781,1739170241534,-500.0,0.00011095,2]
[352563782,1739170241543,-500.0,0.00011095,2]
[352563783,1739170241553,-892.13,0.00011095,2]
[352563784,1739170241562,-500.0,0.00011095,2]
[352563785,1739170241572,-529.56,0.00011095,2]
[352563786,1739170241581,-178.42,0.00011095,2]
[352563787,1739170241592,-500.0,0.00011095,2]
[352563788,1739170241601,-500.0,0.00011095,2]
[352563789,1739170241612,-500.0,0.00011095,2]
[352563790,1739170241622,-500.0,0.00011095,2]
[352563791,1739170241724,-1011.57,0.00011095,2]
[352563792,1739170241734,-500.0,0.00011095,2]
[352563793,1739170241743,-500.0,0.00011095,2]
[352563794,1739170241753,-500.0,0.00011095,2]
[352563795,1739170241762,-500.0,0.00011095,2]
[352563796,1739170241771,-500.0,0.00011095,2]
[352563797,1739170241780,-500.0,0.00011095,2]
[352563798,1739170241789,-1102.03,0.00011095,2]
[352563799,1739170241798,-500.0,0.00011095,2]
[352563800,1739170241808,-500.0,0.00011095,2]
[352563801,1739170241817,-2698.32,0.00011095,2]
[352563802,1739170241826,-500.0,0.00011095,2]
[352563803,1739170241835,-500.0,0.00011095,2]
[352563804,1739170241846,-1269.95,0.00011095,2]
[352563805,1739170241855,-500.0,0.00011095,2]
[352563806,1739170241864,-1453.1,0.00011095,2]
[352563807,1739170241873,-1048.08,0.00011095,2]
[352563808,1739170241882,-500.0,0.00011231,2]
[352563809,1739170241891,-500.0,0.00011231,2]
[352563810,1739170241901,-500.0,0.00011231,2]
[352563811,1739170241911,-500.0,0.00011231,2]
[352563812,1739170241920,-500.0,0.00011232,2]
[352563813,1739170241929,-500.0,0.00011232,2]
[352563814,1739170241939,-500.0,0.00011232,2]
[352563815,1739170241948,-500.0,0.00011232,2]
[352563816,1739170241958,-500.0,0.00011232,2]
[352563817,1739170241967,-500.0,0.00011232,2]
[352563818,1739170241975,-500.0,0.00011232,2]
[352563819,1739170241982,-500.0,0.00011232,2]
[352563820,1739170241991,-524.81,0.00011232,2]
[352563821,1739170241999,-500.0,0.00011232,2]
[352563822,1739170242007,-469.25,0.00011232,2]
[352563823,1739170242017,-500.0,0.00011232,2]
[352563824,1739170242025,-500.0,0.00011232,2]
[352563825,1739170242032,-500.0,0.00011232,2]
[352563826,1739170242040,-500.0,0.00011232,2]
[352563827,1739170242049,-500.0,0.00011232,2]
[352563828,1739170242058,-669.47,0.00011232,2]
[352563829,1739170242065,-500.0,0.00011232,2]
[352563830,1739170242074,-500.0,0.00011232,2]
[352563831,1739170242083,-500.0,0.00011232,2]
[352563832,1739170242093,-1267.99,0.00011232,2]
[352563833,1739170242103,-1598.9,0.00011232,2]
[352563834,1739170242112,-290.86,0.00011232,2]
[352563835,1739170242121,-755.08,0.00011232,2]
[352563836,1739170242130,-5415.67,0.00011232,2]
[352563837,1739170242140,-500.0,0.00011232,2]
[352563838,1739170242148,-500.0,0.00011232,2]
[352563839,1739170242158,-500.0,0.00011232,2]
[352563840,1739170242167,-500.0,0.00011232,2]
[352563841,1739170242176,-644.14,0.00011232,2]
[352563842,1739170242185,-500.0,0.00011232,2]
[352563843,1739170242195,-500.0,0.00011232,2]
[352563844,1739170242204,-500.0,0.00011232,2]
[352563845,1739170242213,-500.0,0.00011232,2]
[352563846,1739170242222,-886.77,0.00011232,2]
[352563847,1739170242233,-11218.02,0.00011232,2]
[352563848,1739170242243,-7404.08,0.00011232,2]
[352563849,1739170242253,-500.0,0.00011232,2]
[352563850,1739170242262,-500.0,0.00011232,2]
[352563851,1739170242271,-500.0,0.00011232,2]
[352563852,1739170242280,-500.0,0.00011232,2]
[352563853,1739170242290,-892.13,0.00011232,2]
[352563854,1739170242300,-500.0,0.00011232,2]
[352563855,1739170242309,-529.56,0.00011232,2]
[352563856,1739170242319,-500.0,0.00011232,2]
[352563857,1739170242328,-351.5,0.00011232,2]
[352563858,1739170242339,-500.0,0.00011232,2]
[352563859,1739170242349,-500.0,0.00011232,2]
[352563860,1739170242358,-1011.57,0.00011232,2]
[352563861,1739170242367,-500.0,0.00011232,2]
[352563862,1739170242377,-500.0,0.00011232,2]
[352563863,1739170242387,-500.0,0.00011232,2]
[352563864,1739170242396,-500.0,0.00011232,2]
[352563865,1739170242404,-500.0,0.00011232,2]
[352563866,1739170242414,-500.0,0.00011232,2]
[352563867,1739170242423,-1102.03,0.00011232,2]
[352563868,1739170242432,-287.7398342,0.00011232,2]
[352563869,1739170242442,-500.0,0.00011232,2]
[352563870,1739170242451,-2698.32,0.00011232,2]
[352563871,1739170242460,-500.0,0.00011232,2]
[352563872,1739170242469,-500.0,0.00011232,2]
[352563873,1739170242478,-1269.95,0.00011232,2]
[352563874,1739170242487,-500.0,0.00011232,2]
[352563875,1739170242495,-1453.1,0.00011232,2]
[352563876,1739170242505,-1048.08,0.00011232,2]
[352563877,1739170242514,-16581.08519484,0.00011269,2]
[352563878,1739170242524,-500.0,0.00011368,2]
[352563879,1739170242533,-505.9443163,0.00011368,2]
[352563880,1739170242542,-500.0,0.00011368,2]
[352563881,1739170242551,-500.0,0.00011368,2]
[352563882,1739170242560,-500.0,0.00011369,2]
[352563883,1739170242570,-500.0,0.00011369,2]
[352563884,1739170242579,-500.0,0.00011369,2]
[352563885,1739170242589,-500.0,0.00011369,2]
[352563886,1739170242599,-571.26963216,0.00011369,2]
[352563887,1739170242608,-500.0,0.00011369,2]
[352563888,1739170242618,-500.0,0.00011369,2]
[352563889,1739170242628,-217.94828471,0.00011369,2]
[352563890,1739170242637,-524.81,0.00011369,2]
[352563891,1739170242646,-500.0,0.00011369,2]
[352563892,1739170242655,-632.80943482,0.00011369,2]
[352563893,1739170242665,-500.0,0.00011369,2]
[352563894,1739170242674,-500.0,0.00011369,2]
[352563895,1739170242683,-383.46,0.00011369,2]
[352563896,1739170242693,-500.0,0.00011369,2]
[352563897,1739170242702,-669.47,0.00011369,2]
[352563898,1739170242711,-500.0,0.00011369,2]
[352563899,1739170242720,-500.0,0.00011369,2]
[352563900,1739170242730,-500.0,0.00011369,2]
[352563901,1739170242739,-1267.99,0.00011369,2]
[352563902,1739170242748,-1598.9,0.00011369,2]
[352563903,1739170242757,-755.08,0.00011369,2]
[352563904,1739170242766,-5415.67,0.00011369,2]
[352563905,1739170242776,-500.0,0.00011369,2]
[352563906,1739170242785,-500.0,0.00011369,2]
[352563907,1739170242794,-500.0,0.00011369,2]
[352563908,1739170242804,-500.0,0.00011369,2]
[352563909,1739170242813,-644.14,0.00011369,2]
[352563910,1739170242822,-500.0,0.00011369,2]
[352563911,1739170242831,-500.0,0.00011369,2]
[352563912,1739170242841,-500.0,0.00011369,2]
[352563913,1739170242850,-500.0,0.00011369,2]
[352563915,1739170242860,-886.77,0.00011369,2]
[352563916,1739170242873,-11218.02,0.00011369,2]
[352563917,1739170242885,-7404.08,0.00011369,2]
[352563918,1739170242897,-500.0,0.00011369,2]
[352563919,1739170242908,-500.0,0.00011369,2]
[352563920,1739170242919,-500.0,0.00011369,2]
[352563922,1739170242930,-500.0,0.00011369,2]
[352563923,1739170242942,-892.13,0.00011369,2]
[352563924,1739170242954,-500.0,0.00011369,2]
[352563925,1739170242965,-529.56,0.00011369,2]
[352563927,1739170242976,-500.0,0.00011369,2]
[352563929,1739170242988,-500.0,0.00011369,2]
[352563931,1739170243000,-500.0,0.00011369,2]
[352563933,1739170243013,-1011.57,0.00011369,2]
[352563935,1739170243024,-500.0,0.00011369,2]
[352563936,1739170243036,-500.0,0.00011369,2]
[352563937,1739170243047,-500.0,0.00011369,2]
[352563938,1739170243057,-500.0,0.00011369,2]
[352563940,1739170243067,-500.0,0.00011369,2]
[352563942,1739170243079,-500.0,0.00011369,2]
[352563943,1739170243090,-1102.03,0.00011369,2]
[352563944,1739170243102,-500.0,0.00011369,2]
[352563945,1739170243113,-2698.32,0.00011369,2]
[352563946,1739170243126,-500.0,0.00011369,2]
[352563947,1739170243137,-500.0,0.00011369,2]
[352563948,1739170243148,-1269.95,0.00011369,2]
[352563949,1739170243160,-500.0,0.00011369,2]
[352563950,1739170243172,-1453.1,0.00011369,2]
[352563951,1739170243184,-1048.08,0.00011369,2]
[352563952,1739170243195,-500.0,0.00011388,2]
[352563953,1739170243205,-508.44500603,0.00011432,2]
[352563954,1739170243217,-163.67726063,0.00011432,2]
[352563955,1739170243229,-500.0,0.00011432,2]
[352563956,1739170243242,-500.0,0.00011434,2]
[352563957,1739170243254,-500.0,0.00011445,2]
[352563958,1739170243265,-1328.50279526,0.00011467,2]
[352563959,1739170243277,-500.0,0.0001147,2]
[352563961,1739170243290,-500.0,0.0001147,2]
[352563963,1739170243301,-500.0,0.00011475,2]
[352563965,1739170243313,-500.0,0.00011475,2]
[352563967,1739170243326,-165.85445475,0.00011505,2]
[352563968,1739170243338,-500.0,0.00011505,2]
[352563969,1739170243352,-500.0,0.00011505,2]
[352563970,1739170243363,-500.0,0.00011505,2]
[352563971,1739170243375,-500.0,0.00011505,2]
[352563972,1739170243385,-154.23857279,0.00011505,2]
[352563973,1739170243396,-500.0,0.00011506,2]
[352563974,1739170243407,-500.0,0.00011506,2]
[352563975,1739170243418,-500.0,0.00011506,2]
[352563976,1739170243431,-500.0,0.00011506,2]
[352563977,1739170243445,-546.21019354,0.00011506,2]
[352563978,1739170243456,-500.0,0.00011506,2]
[352563979,1739170243467,-524.81,0.00011506,2]
[352563980,1739170243477,-500.0,0.00011506,2]
[352563981,1739170243487,-500.0,0.00011506,2]
[352563982,1739170243497,-500.0,0.00011506,2]
[352563983,1739170243508,-392.24203277,0.00011506,2]
[352563984,1739170243519,-669.47,0.00011506,2]
[352563985,1739170243531,-500.0,0.00011506,2]
[352563986,1739170243541,-295.2,0.00011506,2]
[352563988,1739170243552,-1267.99,0.00011506,2]
[352563990,1739170243563,-1598.9,0.00011506,2]
[352563992,1739170243573,-755.08,0.00011506,2]
[352563994,1739170243584,-5415.67,0.00011506,2]
[352563995,1739170243595,-500.0,0.00011506,2]
[352563996,1739170243608,-500.0,0.00011506,2]
[352563997,1739170243619,-500.0,0.00011506,2]
[352563998,1739170243630,-500.0,0.00011506,2]
[352563999,1739170243640,-644.14,0.00011506,2]
[352564000,1739170243651,-321.50057273,0.00011506,2]
[352564001,1739170243662,-500.0,0.00011506,2]
[352564002,1739170243673,-500.0,0.00011506,2]
[352564003,1739170243684,-500.0,0.00011506,2]
[352564004,1739170243695,-886.77,0.00011506,2]
[352564005,1739170243705,-11218.02,0.00011506,2]
[352564006,1739170243716,-7404.08,0.00011506,2]
[352564007,1739170243727,-500.0,0.00011506,2]
[352564008,1739170243739,-500.0,0.00011506,2]
[352564009,1739170243750,-500.0,0.00011506,2]
[352564010,1739170243760,-500.0,0.00011506,2]
[352564011,1739170243771,-892.13,0.00011506,2]
[352564012,1739170243782,-500.0,0.00011506,2]
[352564013,1739170243793,-529.56,0.00011506,2]
[352564014,1739170243804,-500.0,0.00011506,2]
[352564015,1739170243815,-500.0,0.00011506,2]
[352564016,1739170243825,-500.0,0.00011506,2]
[352564017,1739170243835,-1011.57,0.00011506,2]
[352564018,1739170243847,-500.0,0.00011506,2]
[352564019,1739170243858,-500.0,0.00011506,2]
[352564020,1739170243869,-500.0,0.00011506,2]
[352564021,1739170243880,-500.0,0.00011506,2]
[352564022,1739170243891,-500.0,0.00011506,2]
[352564023,1739170243903,-500.0,0.00011506,2]
[352564024,1739170243914,-1102.03,0.00011506,2]
[352564025,1739170243925,-500.0,0.00011506,2]
[352564026,1739170243937,-2698.32,0.00011506,2]
[352564027,1739170243948,-550.4,0.00011506,2]
[352564028,1739170243960,-500.0,0.00011506,2]
[352564029,1739170243971,-1269.95,0.00011506,2]
[352564030,1739170243983,-500.0,0.00011506,2]
[352564031,1739170243995,-1453.1,0.00011506,2]
[352564032,1739170244006,-1048.08,0.00011506,2]
[352564033,1739170244017,-1002.14316149,0.00011521,2]
[352564034,1739170244028,-324.2,0.00011643,2]
[352564035,1739170244039,-500.0,0.00011643,2]
[352564036,1739170244050,-500.0,0.00011643,2]
[352564037,1739170244061,-500.0,0.00011643,2]
[352564038,1739170244072,-500.0,0.00011643,2]
[352564039,1739170244082,-524.81,0.00011643,2]
[352564040,1739170244095,-359.87,0.00011643,2]
[352564041,1739170244106,-500.0,0.00011643,2]
[352564042,1739170244117,-500.0,0.00011643,2]
[352564043,1739170244128,-669.47,0.00011643,2]
[352564044,1739170244139,-500.0,0.00011643,2]
[352564045,1739170244151,-1267.99,0.00011643,2]
[352564046,1739170244163,-1598.9,0.00011643,2]
[352564047,1739170244174,-755.08,0.00011643,2]
[352564048,1739170244186,-5415.67,0.00011643,2]
[352564049,1739170244197,-500.0,0.00011643,2]
[352564050,1739170244207,-500.0,0.00011643,2]
[352564051,1739170244218,-500.0,0.00011643,2]
[352564052,1739170244228,-500.0,0.00011643,2]
[352564053,1739170244238,-644.14,0.00011643,2]
[352564054,1739170244252,-500.0,0.00011643,2]
[352564055,1739170244262,-500.0,0.00011643,2]
[352564056,1739170244271,-500.0,0.00011643,2]
[352564057,1739170244281,-886.77,0.00011643,2]
[352564058,1739170244427,-11218.02,0.00011643,2]
[352564059,1739170244437,-7404.08,0.00011643,2]
[352564060,1739170244447,-500.0,0.00011643,2]
[352564061,1739170244457,-500.0,0.00011643,2]
[352564062,1739170244467,-500.0,0.00011643,2]
[352564063,1739170244476,-500.0,0.00011643,2]
[352564064,1739170244486,-892.13,0.00011643,2]
[352564065,1739170244496,-500.0,0.00011643,2]
[352564066,1739170244506,-529.56,0.00011643,2]
[352564067,1739170244515,-500.0,0.00011643,2]
[352564068,1739170244525,-500.0,0.00011643,2]
[352564069,1739170244534,-500.0,0.00011643,2]
[352564070,1739170244544,-1011.57,0.00011643,2]
[352564071,1739170244554,-500.0,0.00011643,2]
[352564072,1739170244563,-500.0,0.00011643,2]
[352564073,1739170244573,-500.0,0.00011643,2]
[352564074,1739170244582,-500.0,0.00011643,2]
[352564075,1739170244593,-500.0,0.00011643,2]
[352564076,1739170244602,-500.0,0.00011643,2]
[352564077,1739170244611,-1102.03,0.00011643,2]
[352564078,1739170244622,-500.0,0.00011643,2]
[352564079,1739170244631,-2698.32,0.00011643,2]
[352564080,1739170244640,-500.0,0.00011643,2]
[352564081,1739170244650,-1269.95,0.00011643,2]
[352564082,1739170244659,-500.0,0.00011643,2]
[352564083,1739170244668,-1453.1,0.00011643,2]
[352564084,1739170244678,-1048.08,0.00011643,2]
[352564085,1739170244687,-1000.0,0.00011708,2]
[352564086,1739170244697,-500.0,0.0001178,2]
[352564087,1739170244706,-500.0,0.0001178,2]
[352564088,1739170244716,-500.0,0.0001178,2]
[352564089,1739170244725,-500.0,0.0001178,2]
[352564090,1739170244735,-524.81,0.0001178,2]
[352564091,1739170244744,-500.0,0.0001178,2]
[352564092,1739170244754,-500.0,0.0001178,2]
[352564093,1739170244763,-669.47,0.0001178,2]
[352564094,1739170244773,-500.0,0.0001178,2]
[352564095,1739170244783,-1267.99,0.0001178,2]
[352564096,1739170244792,-1598.9,0.0001178,2]
[352564097,1739170244802,-755.08,0.0001178,2]
[352564098,1739170244811,-5415.67,0.0001178,2]
[352564099,1739170244821,-500.0,0.0001178,2]
[352564100,1739170244830,-500.0,0.0001178,2]
[352564101,1739170244841,-500.0,0.0001178,2]
[352564102,1739170244851,-500.0,0.0001178,2]
[352564103,1739170244860,-644.14,0.0001178,2]
[352564104,1739170244870,-500.0,0.0001178,2]
[352564105,1739170244880,-500.0,0.0001178,2]
[352564106,1739170244889,-500.0,0.0001178,2]
[352564107,1739170244900,-886.77,0.0001178,2]
[352564108,1739170244910,-11218.02,0.0001178,2]
[352564109,1739170244921,-7404.08,0.0001178,2]
[352564110,1739170244930,-500.0,0.0001178,2]
[352564111,1739170244940,-500.0,0.0001178,2]
[352564112,1739170244950,-500.0,0.0001178,2]
[352564113,1739170244959,-500.0,0.0001178,2]
[352564114,1739170244969,-892.13,0.0001178,2]
[352564115,1739170244978,-500.0,0.0001178,2]
[352564116,1739170244987,-529.56,0.0001178,2]
[352564117,1739170244997,-500.0,0.0001178,2]
[352564118,1739170245006,-500.0,0.0001178,2]
[352564119,1739170245016,-500.0,0.0001178,2]
[352564120,1739170245026,-1011.57,0.0001178,2]
[352564121,1739170245035,-500.0,0.0001178,2]
[352564122,1739170245044,-500.0,0.0001178,2]
[352564123,1739170245054,-500.0,0.0001178,2]
[352564124,1739170245064,-500.0,0.0001178,2]
[352564125,1739170245073,-500.0,0.0001178,2]
[352564126,1739170245083,-500.0,0.0001178,2]
[352564127,1739170245093,-1102.03,0.0001178,2]
[352564128,1739170245102,-500.0,0.0001178,2]
[352564129,1739170245111,-2698.32,0.0001178,2]
[352564130,1739170245120,-171.5248753,0.0001178,2]
[352564131,1739170245130,-1269.95,0.0001178,2]
[352564132,1739170245139,-500.0,0.0001178,2]
[352564133,1739170245149,-1453.1,0.0001178,2]
[352564134,1739170245158,-1048.08,0.0001178,2]
[352564135,1739170245167,-500.0,0.00011917,2]
[352564136,1739170245176,-500.0,0.00011917,2]
[352564137,1739170245186,-500.0,0.00011917,2]
[352564138,1739170245196,-500.0,0.00011917,2]
[352564139,1739170245206,-524.81,0.00011917,2]
[352564140,1739170245215,-500.0,0.00011917,2]
[352564141,1739170245225,-500.0,0.00011917,2]
[352564142,1739170245234,-669.47,0.00011917,2]
[352564143,1739170245246,-500.0,0.00011917,2]
[352564144,1739170245255,-1267.99,0.00011917,2]
[352564145,1739170245265,-1598.9,0.00011917,2]
[352564146,1739170245274,-755.08,0.00011917,2]
[352564147,1739170245284,-5415.67,0.00011917,2]
[352564148,1739170245293,-500.0,0.00011917,2]
[352564149,1739170245303,-500.0,0.00011917,2]
[352564150,1739170245312,-500.0,0.00011917,2]
[352564151,1739170245322,-500.0,0.00011917,2]
[352564152,1739170245332,-644.14,0.00011917,2]
[352564153,1739170245342,-500.0,0.00011917,2]
[352564154,1739170245352,-500.0,0.00011917,2]
[352564155,1739170245362,-500.0,0.00011917,2]
[352564156,1739170245370,-886.77,0.00011917,2]
[352564157,1739170245380,-11218.02,0.00011917,2]
[352564158,1739170245389,-7404.08,0.00011917,2]
[352564159,1739170245398,-500.0,0.00011917,2]
[352564160,1739170245408,-500.0,0.00011917,2]
[352564161,1739170245418,-500.0,0.00011917,2]
[352564162,1739170245427,-500.0,0.00011917,2]
[352564163,1739170245437,-892.13,0.00011917,2]
[352564164,1739170245446,-500.0,0.00011917,2]
[352564165,1739170245456,-529.56,0.00011917,2]
[352564166,1739170245465,-500.0,0.00011917,2]
[352564167,1739170245474,-500.0,0.00011917,2]
[352564168,1739170245483,-500.0,0.00011917,2]
[352564169,1739170245492,-1011.57,0.00011917,2]
[352564170,1739170245502,-500.0,0.00011917,2]
[352564171,1739170245511,-500.0,0.00011917,2]
[352564172,1739170245520,-500.0,0.00011917,2]
[352564173,1739170245530,-500.0,0.00011917,2]
[352564174,1739170245540,-1102.03,0.00011917,2]
[352564175,1739170245550,-500.0,0.00011917,2]
[352564176,1739170245559,-2698.32,0.00011917,2]
[352564177,1739170245568,-1269.95,0.00011917,2]
[352564178,1739170245578,-500.0,0.00011917,2]
[352564179,1739170245587,-1453.1,0.00011917,2]
[352564180,1739170245598,-1048.08,0.00011917,2]
[352564181,1739170245607,-411.6878396,0.00011936,2]
[352564182,1739170245617,-872.43024915,0.0001198,2]
[352564183,1739170245626,-1000.0,0.00011993,2]
[352564184,1739170245635,-500.0,0.00012018,2]
[352564185,1739170245644,-397.34595654,0.00012018,2]
[352564186,1739170245654,-500.8912339,0.00012023,2]
[352564187,1739170245663,-500.74367822,0.00012023,2]
[352564188,1739170245672,-17878.89027299,0.00012054,5]
[352564189,1739170245682,-2256.51709317,0.00012054,5]
[352564190,1739170245691,-500.0,0.00012054,2]
[352564191,1739170245700,-500.0,0.00012054,2]
[352564192,1739170245710,-500.0,0.00012054,2]
[352564193,1739170245718,-500.0,0.00012054,2]
[352564194,1739170245727,-524.81,0.00012054,2]
[352564195,1739170245736,-500.0,0.00012054,2]
[352564196,1739170245746,-500.0,0.00012054,2]
[352564197,1739170245755,-669.47,0.00012054,2]
[352564198,1739170245764,-184.59,0.00012054,2]
[352564199,1739170245774,-1267.99,0.00012054,2]
[352564200,1739170245783,-1598.9,0.00012054,2]
[352564201,1739170245792,-755.08,0.00012054,2]
[352564202,1739170245802,-5415.67,0.00012054,2]
[352564203,1739170245811,-500.0,0.00012054,2]
[352564204,1739170245821,-500.0,0.00012054,2]
[352564205,1739170245830,-500.0,0.00012054,2]
[352564206,1739170245840,-500.0,0.00012054,2]
[352564207,1739170245850,-644.14,0.00012054,2]
[352564208,1739170245859,-500.0,0.00012054,2]
[352564209,1739170245869,-500.0,0.00012054,2]
[352564210,1739170245878,-500.0,0.00012054,2]
[352564211,1739170245887,-886.77,0.00012054,2]
[352564212,1739170245896,-11218.02,0.00012054,2]
[352564213,1739170245906,-7404.08,0.00012054,2]
[352564214,1739170245915,-500.0,0.00012054,2]
[352564215,1739170245925,-500.0,0.00012054,2]
[352564216,1739170245935,-500.0,0.00012054,2]
[352564217,1739170245945,-500.0,0.00012054,2]
[352564218,1739170245954,-892.13,0.00012054,2]
[352564219,1739170245963,-500.0,0.00012054,2]
[352564220,1739170245973,-529.56,0.00012054,2]
[352564222,1739170245982,-500.0,0.00012054,2]
[352564223,1739170245991,-500.0,0.00012054,2]
[352564224,1739170246000,-500.0,0.00012054,2]
[352564226,1739170246009,-1011.57,0.00012054,2]
[352564228,1739170246019,-500.0,0.00012054,2]
[352564229,1739170246028,-500.0,0.00012054,2]
[352564230,1739170246038,-500.0,0.00012054,2]
[352564231,1739170246047,-500.0,0.00012054,2]
[352564232,1739170246057,-1102.03,0.00012054,2]
[352564233,1739170246067,-500.0,0.00012054,2]
[352564235,1739170246076,-2698.32,0.00012054,2]
[352564236,1739170246086,-1269.95,0.00012054,2]
[352564238,1739170246098,-500.0,0.00012054,2]
[352564240,1739170246107,-1453.1,0.00012054,2]
[352564241,1739170246118,-1048.08,0.00012054,2]
[352564242,1739170246127,-500.0,0.00012191,2]
[352564243,1739170246137,-500.0,0.00012191,2]
[352564244,1739170246147,-500.0,0.00012191,2]
[352564245,1739170246156,-500.0,0.00012191,2]
[352564246,1739170246165,-524.81,0.00012191,2]
[352564247,1739170246174,-500.0,0.00012191,2]
[352564248,1739170246183,-500.0,0.00012191,2]
[352564249,1739170246192,-669.47,0.00012191,2]
[352564250,1739170246202,-1267.99,0.00012191,2]
[352564251,1739170246211,-1598.9,0.00012191,2]
[352564252,1739170246220,-755.08,0.00012191,2]
[352564253,1739170246230,-5415.67,0.00012191,2]
[352564254,1739170246241,-500.0,0.00012191,2]
[352564255,1739170246251,-500.0,0.00012191,2]
[352564256,1739170246261,-500.0,0.00012191,2]
[352564257,1739170246271,-465.36167494,0.00012191,2]
[352564258,1739170246280,-644.14,0.00012191,2]
[352564259,1739170246290,-500.0,0.00012191,2]
[352564260,1739170246300,-184.83,0.00012191,2]
[352564261,1739170246310,-500.0,0.00012191,2]
[352564262,1739170246320,-886.77,0.00012191,2]
[352564264,1739170246330,-11218.02,0.00012191,2]
[352564265,1739170246342,-7404.08,0.00012191,2]
[352564266,1739170246353,-500.0,0.00012191,2]
[352564267,1739170246364,-500.0,0.00012191,2]
[352564269,1739170246374,-500.0,0.00012191,2]
[352564271,1739170246384,-500.0,0.00012191,2]
[352564272,1739170246394,-892.13,0.00012191,2]
[352564273,1739170246403,-500.0,0.00012191,2]
[352564274,1739170246413,-529.56,0.00012191,2]
[352564275,1739170246423,-500.0,0.00012191,2]
[352564276,1739170246434,-500.0,0.00012191,2]
[352564277,1739170246444,-500.0,0.00012191,2]
[352564278,1739170246454,-1011.57,0.00012191,2]
[352564279,1739170246464,-500.0,0.00012191,2]
[352564280,1739170246474,-500.0,0.00012191,2]
[352564281,1739170246484,-500.0,0.00012191,2]
[352564282,1739170246494,-235.91633829,0.00012191,2]
[352564283,1739170246504,-1102.03,0.00012191,2]
[352564284,1739170246514,-500.0,0.00012191,2]
[352564285,1739170246525,-2698.32,0.00012191,2]
[352564286,1739170246534,-1269.95,0.00012191,2]
[352564287,1739170246544,-500.0,0.00012191,2]
[352564288,1739170246554,-1453.1,0.00012191,2]
[352564289,1739170246564,-1048.08,0.00012191,2]